[Event "93rd German Championship 2022"]
[Site "Magdeburg"]
[Date "2022.08.18"]
[Round "6.10"]
[White "Parvanyan, Alfred"]
[Black "Kunin, Vitaly"]
[Result "1/2-1/2"]
[ECO "A06"]
[WhiteElo "2126"]
[BlackElo "2528"]
[Annotator "TA"]
[PlyCount "82"]
[EventDate "2022.08.14"]
[EventType "swiss"]
[EventCountry "GER"]
[SourceTitle "playchess.com"]
[Source "ChessBase"]
[SourceQuality "1"]
[TimeControl "40/5400+30:1800+30"]

{[%evp 14,82,12,12,3,5,0,0,10,0,0,-15,18,15,37,26,28,39,24,19,15,18,43,15,18,0,24,17,118,6,9,16,37,20,46,29,64,0,0,0,0,-91,-76,-75,-75,-82,-75,-77,-6,-2,-3,-3,0,-16,0,-20,-17,-14,0,0,0,0,0,0,0,0,0,0,0,0,0]} 1. Nf3 {[%emt 0:03:11]} d5 {[%emt 0:00:14]} 2. g3 {[%emt 0:00:18]} c6 {[%emt 0:00:53]} 3. Bg2 {[%emt 0:00:56]} Bg4 {[%emt 0:00:48]} 4. d4 {[%emt 0:01:20]} Nd7 {[%emt 0:01:23]} 5. O-O {[%emt 0:00:35]} e6 {[%emt 0:00:10]} 6. Nbd2 {[%emt 0:00:52]} Ngf6 {[%emt 0:00:12]} 7. Re1 {[%emt 0:00:09]} Be7 {[%emt 0:00:11]} 8. e4 {[%emt 0:00:09]} h6 {[%emt 0:00:08] D02: 1 d4 d5 2 Nf3 sidelines, including 2...Nf6 3 g3 and 2...Nf6 3 Bf4.} 9. c3 {[%emt 0:03:43]} O-O {[%emt 0:00:22]} 10. Qb3 {[%emt 0:02:58] The old main line.} Rb8 {[%emt 0:01:30]} 11. exd5 {[%emt 0:01:53]} cxd5 {[%emt 0:00:38]} 12. Nf1 {[%emt 0:02:24] [#]} Bxf3 $146 {[%emt 0:06:15]} ({Predecessor:} 12... b5 13. Bf4 Rb6 14. Ne5 Nxe5 15. dxe5 Nd7 16. Be3 Rb7 17. a4 a6 18. axb5 Rxb5 {0-1 (38) Dausch,R (2355)-Stojanovic,M (2559) Germany 2013}) 13. Bxf3 {[%emt 0:00:12]} Bd6 {[%emt 0:00:07]} 14. Ne3 {[%emt 0:03:53]} b5 {[%emt 0:01:21]} 15. a4 {[%emt 0:01:34]} a6 {[%emt 0:04:09]} 16. axb5 {[%emt 0:04:29]} axb5 {[%emt 0:00:09]} 17. Ra6 {[%emt 0:01:37]} Ne8 {[%emt 0:06:12][%cal Bf6e8,Be8c7,Bc7b5][%mdl 32]} 18. Bd2 {[%emt 0:06:30]} Nb6 {[%emt 0:01:09]} 19. Rea1 {[%emt 0:11:48]} ({Avoid the trap} 19. Qxb5 $2 Nc4 20. Qa4 Nxd2 $19) 19... f5 {[%emt 0:03:53]} 20. Ng2 {[%emt 0:11:49] Prevents f4.} ({Not} 20. Qxb5 $2 Nc4 21. Ra8 Nxd2 $19) 20... Nc4 {[%emt 0:05:46]} (20... Nc7 $11) 21. Qc2 {[%emt 0:01:24]} (21. Bf4 $16) 21... Nc7 $11 {[%emt 0:07:02]} 22. Ra7 {[%emt 0:01:31]} b4 {[%emt 0:03:22]} 23. Bf4 {[%emt 0:06:24]} bxc3 {[%emt 0:04:01]} 24. bxc3 {[%emt 0:03:07]} Rb2 {[%emt 0:04:09]} 25. Qa4 {[%emt 0:03:13]} (25. Qc1 $1 $14) 25... Nb5 {[%emt 0:03:02]} 26. Bxd6 {[%emt 0:01:10]} Ncxd6 {[%emt 0:17:00] Pair of Knights!} 27. Nf4 {[%emt 0:02:33]} (27. Ra6 $11) 27... Nxa7 $17 {[%emt 0:17:21]} 28. Nxe6 {[%emt 0:01:59] [#]} Qe8 {[%emt 0:00:07]} 29. Qxe8 {[%emt 0:06:16]} ({Reject} 29. Nxf8 Nab5 30. Bxd5+ Kxf8) 29... Rxe8 {[%emt 0:00:09]} 30. Rxa7 {[%emt 0:04:13] [#]} Ne4 {[%emt 0:01:39]} (30... Rxe6 $2 31. Bxd5 Rbe2 32. Re7 $18) (30... Kh8 $1 $17 31. Bxd5 Nb5) 31. Nxg7 $11 {[%emt 0:04:05] The position is equal.} Rf8 {[%emt 0:00:43]} 32. Ne6 $132 {[%emt 0:02:57][%mdl 2048] Bxe4 is the strong threat. White is not keeping still} Rc8 {[%emt 0:02:04]} 33. Nc7 {[%emt 0:03:57]} Nxf2 {[%emt 0:03:34]} 34. Bxd5+ {[%emt 0:00:29]} Kh8 $1 {[%emt 0:00:11]} 35. c4 {[%emt 0:02:19]} Ng4 {[%emt 0:01:12][%mdl 1024] Black has compensation.} 36. Be6 {[%emt 0:00:49][%csl LRc8,LRf5]} Rf8 {[%emt 0:00:46]} 37. Nd5 $1 {[%emt 0:01:06]} Rb1+ {[%emt 0:03:18]} 38. Kg2 {[%emt 0:00:01]} Rb2+ {[%emt 0:00:04]} 39. Kg1 {[%emt 0:00:48]} Rb1+ {[%emt 0:04:14]} 40. Kg2 {[%emt 0:00:05]} Rb2+ {[%emt 0:00:30]} 41. Kg1 {[%emt 0:30:57]} Rb1+ {[%emt 0:12:22] Weighted Error Value: White=0.16 (very precise) /Black=0.17 (very precise)} 1/2-1/2

[Event "93rd German Championship 2022"]
[Site "Magdeburg"]
[Date "2022.08.18"]
[Round "6.11"]
[White "Bethke, Richard"]
[Black "Feuerstack, Aljoscha"]
[Result "1-0"]
[ECO "C24"]
[WhiteElo "2381"]
[BlackElo "2473"]
[Annotator "TA"]
[PlyCount "81"]
[EventDate "2022.08.14"]
[EventType "swiss"]
[EventCountry "GER"]
[SourceTitle "playchess.com"]
[Source "ChessBase"]
[SourceQuality "1"]
[TimeControl "40/5400+30:1800+30"]

{[%evp 12,81,35,14,16,13,20,22,19,22,18,29,24,22,35,7,15,15,13,5,27,-7,0,-19,0,0,0,0,21,31,33,34,34,26,38,0,16,13,0,15,23,18,12,0,53,62,62,0,159,151,157,160,124,154,144,149,147,129,129,119,114,120,127,145,124,129,525,525,662,656,539,539]} 1. e4 {[%emt 0:00:02]} e5 {[%emt 0:00:05]} 2. Bc4 {[%emt 0:00:05]} Nf6 {[%emt 0:00:05]} 3. d3 {[%emt 0:00:05]} c6 {[%emt 0:00:14]} 4. Nf3 {[%emt 0:00:17]} d5 {[%emt 0:00:11]} 5. Bb3 {[%emt 0:00:31]} Bb4+ {[%emt 0:00:24]} 6. Bd2 {[%emt 0:02:54]} Bxd2+ {[%emt 0:00:17]} 7. Nbxd2 {[%emt 0:00:05]} Nbd7 {[%emt 0:09:10] C24: Bishop's Opening: 2...Nf6.} 8. O-O {[%emt 0:12:24]} O-O {[%emt 0:00:11]} 9. Re1 {[%emt 0:02:33]} Qc7 {[%emt 0:12:07] The position is equal.} 10. d4 {[%emt 0:11:41]} exd4 {[%emt 0:07:00]} 11. exd5 {[%emt 0:14:21]} cxd5 {[%emt 0:01:21]} 12. Nxd4 {[%emt 0:10:58]} Nc5 {[%emt 0:10:23] [#]} 13. Qe2 $146 {[%emt 0:05:50]} ({Predecessor:} 13. Nf1 Be6 14. c3 Rfe8 15. Ne3 Qf4 16. Qf3 Qxf3 17. Nxf3 Nd3 18. Re2 Nf4 19. Rd2 {½-½ (32) Korneev,O (2545)-Hawkins,J (2569) Hastings 2019}) 13... Bg4 {[%emt 0:05:25]} 14. Qe5 {[%emt 0:03:29]} Qb6 {[%emt 0:01:49]} 15. h3 {[%emt 0:06:45]} (15. Bxd5 Rfe8 16. Qf4 (16. Qg5 h6 $15) 16... Qxb2 $11) 15... Bd7 {[%emt 0:00:54]} 16. N2f3 {[%emt 0:02:18]} (16. Bxd5 $2 Rae8 17. Nc4 (17. Qg5 $2 h6 $19) 17... Rxe5 $19) 16... a5 {[%emt 0:04:32] Threatens to win with ...Rfe8.} 17. Ne2 {[%emt 0:10:22][%cal Bd4e2,Be2f4,Bf4d3,Bd3e5][%mdl 32]} (17. Bxd5 $2 Rae8 18. Qg5 h6 19. Bxf7+ Rxf7 20. Rxe8+ Bxe8 $19) 17... Bc6 {[%emt 0:26:33] Strongly threatening ...Rfe8.} (17... Nxb3 18. axb3 Rfe8 19. Qd4 $14) (17... Nce4 18. Qd4 Qxd4 19. Nexd4 $14) 18. Nf4 {[%emt 0:00:41][%cal Rb3d5]} Rad8 {[%emt 0:02:37] And now ...Rfe8 would win.} 19. Rad1 $1 {[%emt 0:01:35][%cal Rb3d5]} Nce4 {[%emt 0:10:37]} 20. Qd4 {[%emt 0:00:23]} Qc7 {[%emt 0:00:07]} 21. Nd3 {[%emt 0:01:30]} Rfe8 {[%emt 0:00:11]} 22. Nde5 {[%emt 0:04:40]} h6 {[%emt 0:02:16]} 23. Re3 {[%emt 0:03:10]} a4 {[%emt 0:01:27]} 24. Nxc6 {[%emt 0:03:29]} bxc6 {[%emt 0:00:05]} 25. Bxa4 {[%emt 0:00:05]} Ra8 {[%emt 0:00:05] White must now prevent ...c5.} 26. b3 $1 {[%emt 0:01:30]} Re6 {[%emt 0:00:30]} 27. Nd2 {[%emt 0:01:23]} Qf4 {[%emt 0:04:14]} (27... c5 $11 28. Qd3 Nc3 29. Rxe6 (29. Qxc3 $2 d4 $19) 29... Nxd1 30. Rxf6 gxf6) 28. Nxe4 $14 {[%emt 0:00:48]} Nxe4 {[%emt 0:00:03]} 29. Rf3 {[%emt 0:00:33]} ({Better is} 29. f3 $14 c5 30. Qd3) 29... Qh4 $2 {[%emt 0:00:37] [#]} (29... Qg5 $11) 30. Bxc6 $1 $16 {[%emt 0:00:32][%mdl 512]} Rxc6 {[%emt 0:00:16]} 31. Qxd5 {[%emt 0:00:01]} Rac8 {[%emt 0:00:19]} 32. Qxf7+ {[%emt 0:00:10]} Kh8 {[%emt 0:00:31]} 33. Rf4 $40 {[%emt 0:01:15][%cal Bf3f4,Bf4h4,Bh4h6][%mdl 160] White is out for blood.} ({Much weaker is} 33. Rd7 $6 Qg5 $11) 33... Ng5 {[%emt 0:00:09]} 34. Qxg7+ {[%emt 0:00:33]} ({Resist} 34. Rxh4 Nxf7 35. c4 Ra8 $16) 34... Kxg7 {[%emt 0:00:05]} 35. Rd7+ {[%emt 0:00:17]} Kg6 {[%emt 0:01:10]} 36. Rxh4 {[%emt 0:00:06]} Rxc2 {[%emt 0:01:05]} 37. Rd6+ {[%emt 0:00:16]} Kf7 {[%emt 0:00:15]} 38. Rhxh6 {[%emt 0:00:59]} Rxa2 $2 {[%emt 0:01:23][%mdl 8192] [#]} (38... Ne4 $16 {is tougher.}) 39. Rd7+ $1 $18 {[%emt 0:00:47] White is clearly winning.} Ke8 {[%emt 0:00:08] [#]} 40. Rb7 {[%emt 0:00:25][%cal Rh6h8]} Rc1+ {[%emt 0:01:06]} 41. Kh2 {[%emt 0:30:05] Weighted Error Value: White=0.06 (flawless) /Black=0.45} 1-0

[Event "93rd German Championship 2022"]
[Site "Magdeburg"]
[Date "2022.08.18"]
[Round "6.22"]
[White "Koehler, Christian Friedrich"]
[Black "Eichstaedt, Mirko"]
[Result "0-1"]
[ECO "D45"]
[WhiteElo "2285"]
[BlackElo "2223"]
[Annotator "TA"]
[PlyCount "94"]
[EventDate "2022.08.14"]
[EventType "swiss"]
[EventCountry "GER"]
[SourceTitle "playchess.com"]
[Source "ChessBase"]
[SourceQuality "1"]
[TimeControl "40/5400+30:1800+30"]

{[%evp 22,94,28,21,31,-78,2,0,0,0,12,-2,0,0,0,0,0,0,0,-17,0,-2,0,0,30,28,30,0,0,-16,-24,-22,0,-20,-29,-27,0,0,0,-89,-46,-446,-430,-871,-377,-370,-363,-363,-363,-363,-363,-361,-362,-353,-351,-363,-361,-358,-333,-356,-336,-369,-359,-531,-472,-29965,-29966,-7441,-601,-29983,-29974,-29983,-618,-29996,-29997]} 1. d4 d5 2. c4 c6 3. Nf3 Nf6 4. Nc3 e6 5. e3 Nbd7 6. Be2 Bd6 7. O-O O-O 8. Qc2 dxc4 9. Bxc4 b5 10. Be2 Bb7 11. Rd1 {11.e4 is more fashionable.} Qc7 12. e4 {Strongly threatening e5.} e5 {D46: Semi-Slav: 5 e3 Nbd7 6 Bd3, Black avoids the Meran.} 13. h3 (13. Bg5 $14 {keeps the upper hand.}) 13... Rfe8 (13... exd4 $17 14. Rxd4 b4) 14. a3 a5 {The position is equal.} 15. dxe5 Nxe5 16. Bg5 {[#]} b4 $146 ({Predecessor:} 16... Nfd7 17. Rac1 Qb8 18. Nd4 b4 19. Nb1 Bf8 20. Be3 c5 21. Nb5 a4 22. axb4 Bc6 {0-1 (39) Bui,V (2461)-Duong,T (2243) Ho Chi Minh City 2003}) 17. axb4 axb4 {Threatens to win with ...Rxa1.} (17... Nxf3+ {feels hotter.} 18. Bxf3 axb4 19. Na4 c5) 18. Rxa8 Bxa8 19. Bxf6 gxf6 20. Na4 Nxf3+ 21. Bxf3 c5 22. b3 Qe7 23. Nb6 Be5 24. Rd7 Qe6 25. Qc4 {[%cal Of3h5]} Bc6 26. Ra7 Bb8 {A strong pair of Bishops.} 27. Qxe6 (27. Ra1 {seems wilder.} Qe5 28. Rd1 Qc3 29. Rc1) 27... Rxe6 28. Ra1 Bxe4 29. Bxe4 Rxe4 $11 {[%mdl 4096] Endgame KRB-KRN} 30. f3 (30. Nd7 $11 {keeps the balance.} Be5 31. Nxc5) 30... Re8 31. Ra8 $2 {[%mdl 8192] Now White is beyond hope.} (31. Nd7 $15 Be5 32. Nxe5 fxe5 33. Kf2) 31... c4 $19 32. bxc4 {[#]} (32. f4 $142 c3 33. Ra2) 32... b3 (32... Bh2+ $142 $1 {[%mdl 512]} 33. Kxh2 Rxa8) 33. Ra1 Be5 34. Rb1 Bd4+ 35. Kf1 Bxb6 36. Rxb3 {KRB-KR} Bd4 37. Rd3 Bc5 38. Rd5 Re5 {And now ...Rxd5 would win.} 39. Rd8+ Bf8 40. Kf2 h5 41. Kg3 Kg7 42. Kh4 (42. h4 $142) 42... Bc5 {( -> ...Bf2+)} 43. Rd2 {Inhibits Bf2+.} (43. Kg3 $19) 43... Bb4 44. f4 {[#]} Re4 (44... Kg6 $142 $1 45. Rd3 (45. fxe5 Bxd2) 45... Be1+ 46. g3 Re4 47. Rf3 Rxc4 48. Rf1 Rc1 49. f5+ Kh6 50. Rxe1 Rxe1 51. g4 Re4 52. Kg3 hxg4 53. hxg4 Kg5 54. Kf3 Re5 55. Kg3 Re3+ 56. Kf2 Kf4 57. Kg2 Kxg4 58. Kf2 Re5 59. Kg2 Rxf5 60. Kh1 Kg3 61. Kg1 Kh3 62. Kh1 Rf1#) 45. Rb2 Rxf4+ 46. Kxh5 Rxc4 (46... Be1 $142 47. g4 Rxc4 48. h4 Rc8 49. g5 Rh8+ 50. Kg4 Rxh4+ 51. Kf5 Rh5 52. Rc2 Rxg5+ 53. Ke4 f5+ 54. Ke5 f6+ 55. Kd5 Rg3 56. Rh2 Bc3 57. Re2 Kg6 58. Rh2 f4 59. Ke4 Kg5 60. Kd5 Re3 61. Rg2+ Kf5 62. Rh2 f3 63. Rh1 Re1 64. Rh2 Be5 65. Rd2 Bg3 66. Rd3 f2 67. Rf3+ Kg4 68. Rxf2 Bxf2 69. Kc4 f5 70. Kb3 f4 71. Kc3 Be3 72. Kc4 f3 73. Kd5 f2 74. Ke6 f1=Q 75. Kd7 Qb5+ 76. Ke7 Bg5+ 77. Kf8 Qe8+ 78. Kg7 Re7#) 47. g4 Rc5+ {Weighted Error Value: White=0.94/Black=0.77} 0-1

[Event "93rd German Championship 2022"]
[Site "Magdeburg"]
[Date "2022.08.18"]
[Round "7.1"]
[White "Parvanyan, Ashot"]
[Black "Poetsch, Hagen"]
[Result "1-0"]
[ECO "E04"]
[WhiteElo "2428"]
[BlackElo "2500"]
[Annotator "TA"]
[PlyCount "107"]
[EventDate "2022.08.14"]
[EventType "swiss"]
[EventCountry "GER"]
[SourceTitle "playchess.com"]
[Source "ChessBase"]
[SourceQuality "1"]
[TimeControl "40/5400+30:1800+30"]

{[%evp 9,107,11,33,-43,-52,-41,-16,-35,0,0,0,-12,10,17,30,34,31,36,25,9,19,13,25,35,41,11,16,29,47,56,53,46,85,27,36,29,46,45,76,72,79,70,75,0,0,0,9,0,0,0,0,-9,-18,-41,0,-15,0,0,87,85,120,121,130,131,145,157,153,156,150,67,67,65,142,117,150,163,179,135,182,150,352,352,455,429,485,477,676,661,646,431,642,620,704,731,815,796,6103,6041,29989,848]} 1. Nf3 {[%emt 0:00:51]} d5 {[%emt 0:00:17]} 2. d4 {[%emt 0:01:07]} Nf6 {[%emt 0:00:06]} 3. c4 {[%emt 0:00:04]} e6 {[%emt 0:00:05]} 4. g3 {[%emt 0:00:08]} dxc4 {[%emt 0:00:06]} 5. Bg2 {[%emt 0:00:14]} Nbd7 {[%emt 0:00:27]} 6. Na3 {[%emt 0:11:35] E04: Open Catalan: 5 Nf3.} (6. O-O $14) 6... Bxa3 $15 {[%emt 0:03:10]} 7. bxa3 {[%emt 0:00:12] [#]} O-O $146 {[%emt 0:01:17]} ({Predecessor:} 7... c5 8. O-O {½-½ (8) Titan,M (2091)-Spalir,J (2165) Sentjur 2011}) 8. a4 {[%emt 0:16:06] The position is equal.} a5 {[%emt 0:08:50]} 9. Ba3 {[%emt 0:02:08]} Re8 {[%emt 0:00:06]} 10. Rc1 {[%emt 0:00:38][%cal Ba1c1,Bc1c4,Bc4c5][%mdl 32]} Nb6 {[%emt 0:24:32]} 11. Ne5 {[%emt 0:00:15]} Nfd7 {[%emt 0:03:48]} 12. Nxc4 {[%emt 0:14:33]} Nxc4 {[%emt 0:00:13]} 13. Rxc4 {[%emt 0:00:03]} Nb6 {[%emt 0:02:04]} 14. Rc5 {[%emt 0:03:52]} Qd7 {[%emt 0:06:27]} 15. O-O {[%emt 0:27:34]} Nxa4 {[%emt 0:01:37]} 16. Rc1 {[%emt 0:03:20]} Nb6 {[%emt 0:06:01]} 17. Qc2 {[%emt 0:02:11][%mdl 1024] White has compensation.} c6 {[%emt 0:04:07]} 18. Rfd1 {[%emt 0:00:21][%cal Bf1d1,Bd1d2,Bd2b2][%mdl 32]} Qc7 {[%emt 0:03:46]} 19. e4 {[%emt 0:01:36]} Bd7 {[%emt 0:00:56]} 20. d5 {[%emt 0:04:28]} e5 {[%emt 0:04:36]} 21. d6 {[%emt 0:02:12]} ({White should play} 21. Bf1 $16) 21... Qd8 $11 {[%emt 0:00:38]} 22. f4 {[%emt 0:03:12]} Bg4 {[%emt 0:05:59]} 23. Rd2 {[%emt 0:01:01] Strongly threatening f5.} exf4 {[%emt 0:03:09]} 24. gxf4 {[%emt 0:00:03]} Qh4 {[%emt 0:00:46]} 25. Qb3 {[%emt 0:03:50]} Nd7 {[%emt 0:01:17]} 26. Qg3 {[%emt 0:01:23]} (26. Qxb7 $16 Bh3 27. Rf1 (27. Qxc6 Qxf4 28. Rf2 Qg5 $11)) 26... Qxg3 {[%emt 0:00:25]} 27. hxg3 {[%emt 0:00:03]} f6 {[%emt 0:01:17]} 28. Rb2 {[%emt 0:00:55]} Rab8 {[%emt 0:00:49]} 29. Bc5 $36 {[%emt 0:00:31][%mdl 2048] White has good play.} b6 {[%emt 0:03:14]} 30. Bf2 {[%emt 0:00:04]} c5 {[%emt 0:00:51]} 31. a4 {[%emt 0:00:03]} g5 {[%emt 0:07:32]} 32. Re1 {[%emt 0:00:57]} Kf7 {[%emt 0:01:31]} 33. Bf1 {[%emt 0:00:00]} gxf4 {[%emt 0:00:40]} (33... h5 $11 {remains equal.}) 34. gxf4 $16 {[%emt 0:00:22]} Bf3 {[%emt 0:05:00]} 35. Bc4+ {[%emt 0:00:34]} Kg7 {[%emt 0:01:37]} 36. Bb5 {[%emt 0:00:35] 0x0.0002da4b0b6edp-1022s more active pieces.} Rxe4 {[%emt 0:00:40]} 37. Rxe4 {[%emt 0:01:13]} Bxe4 {[%emt 0:00:06]} 38. Bxd7 {[%emt 0:00:38]} Rd8 {[%emt 0:00:06] [#]} 39. Bb5 {[%emt 0:00:31]} ({Reject} 39. Rxb6 Rxd7 40. Bxc5 Kg6 $11) ({Better is} 39. Be6 $1 $16 Rxd6 40. f5) 39... Rxd6 $14 {[%emt 0:00:05]} 40. Re2 {[%emt 0:00:28]} f5 {[%emt 0:00:45] [#]} (40... Bc6 $14) 41. Be1 $1 $16 {[%emt 0:30:28]} Rd1 {[%emt 0:02:58]} 42. Kf2 {[%emt 0:00:00]} Kf7 {[%emt 0:04:59]} 43. Re3 {[%emt 0:00:00] Rh3 is the strong threat.} Rb1 {[%emt 0:03:58]} (43... Ra1 $16 44. Bc3 Rh1 45. Bc4+ Ke7) 44. Bc3 {[%emt 0:00:00] Black must now prevent Rh3.} Ke6 $2 {[%emt 0:07:42] Loses the game.} (44... Rh1 $16 {is a better defense.} 45. Be5 Rh2+ 46. Ke1 Rh1+ 47. Kd2 Rh2+ 48. Re2 Rh6) 45. Rh3 $18 {[%emt 0:00:00]} Rc1 {[%emt 0:04:41]} 46. Bc4+ {[%emt 0:00:00] A strong pair of Bishops.} Kd7 {[%emt 0:01:46]} 47. Rxh7+ {[%emt 0:00:00]} Kc6 {[%emt 0:00:15]} (47... Kc8 $142 48. Be6+ Kb8) 48. Bb5+ {[%emt 0:00:00]} Kd5 {[%emt 0:00:05]} 49. Rd7+ {[%emt 0:01:21]} Ke6 {[%emt 0:00:17]} 50. Be5 {[%emt 0:00:05]} c4 {[%emt 0:01:03]} 51. Rc7 {[%emt 0:01:24] White wants to mate with Be8.} Bd3 {[%emt 0:02:31]} 52. Ke3 {[%emt 0:00:49] Threatens to win with Bd7+.} Kd5 {[%emt 0:00:40]} 53. Bc6+ {[%emt 0:00:29]} Ke6 {[%emt 0:00:29]} 54. Be8 {[%emt 0:00:05] Weighted Error Value: White=0.15 (very precise) /Black=0.42} (54. Kd4 $142 Be4 55. Bd7+ Ke7 56. Bxf5+ Kd8 57. Kxe4 Re1+ 58. Kf3 c3 59. Rb7) 1-0

[Event "93rd German Championship 2022"]
[Site "Magdeburg"]
[Date "2022.08.18"]
[Round "7.2"]
[White "Vogel, Roven"]
[Black "Krastev, Alexander"]
[Result "1-0"]
[ECO "E10"]
[WhiteElo "2465"]
[BlackElo "2435"]
[Annotator "TA"]
[PlyCount "143"]
[EventDate "2022.08.14"]
[EventType "swiss"]
[EventCountry "GER"]
[SourceTitle "playchess.com"]
[Source "ChessBase"]
[SourceQuality "1"]
[TimeControl "40/5400+30:1800+30"]

{[%evp 17,143,14,12,-10,26,0,12,0,0,0,0,0,0,7,9,10,0,0,0,0,0,-12,-10,-79,-76,-67,-32,-22,-16,-10,-4,-10,0,-11,0,-29,0,0,0,0,11,7,15,13,14,8,84,84,84,84,84,81,84,84,108,107,113,112,113,114,141,108,435,362,589,608,533,441,445,415,407,358,295,128,120,120,664,559,674,659,553,525,685,638,716,684,660,497,686,628,766,791,794,680,1297,733,1595,1546,5820,9936,12116,10757,11374,11971,9719,10959,7999,7637,6621,2263,1854,1713,1519,1344,5996,5591,29973,29974,29969,29972,29978,29979,29979,29980,29980,29981,29988,29989]} 1. d4 {[%emt 0:00:03]} Nf6 {[%emt 0:02:56]} 2. c4 {[%emt 0:00:17]} e6 {[%emt 0:00:05]} 3. Nf3 {[%emt 0:01:04]} c5 {[%emt 0:00:04]} 4. e3 {[%emt 0:03:14]} cxd4 {[%emt 0:00:18]} 5. exd4 {[%emt 0:00:10]} d5 {[%emt 0:00:04]} 6. Nc3 {[%emt 0:00:17]} Be7 {[%emt 0:00:06]} 7. cxd5 {[%emt 0:02:07]} Nxd5 {[%emt 0:00:08]} 8. Bd3 {[%emt 0:00:41]} Nc6 {[%emt 0:00:59] 8...0-0 injects fresh life into this line.} 9. O-O {[%emt 0:02:03]} O-O {[%emt 0:00:09]} 10. Be4 {[%emt 0:09:05] D42: Queen's Gambit Declined: Semi-Tarrasch: 5 cxd5 Nxd5 6 e3 Nc6 7 Bd3 .} Bf6 {[%emt 0:10:50] [#]} (10... Nf6 $5 {[%cal Rf6e4]}) 11. Qe2 $146 {[%emt 0:08:24]} ({Predecessor:} 11. Qd3 g6 12. Bh6 Re8 13. Rad1 b6 14. Rfe1 Bb7 15. Bxd5 Nb4 16. Bxb7 Nxd3 17. Rxd3 Rb8 {0-1 (47) Collins,S (2456)-Keymer,V (2591) Chess.com INT 2021}) 11... b6 {[%emt 0:06:17]} 12. Nxd5 {[%emt 0:04:00] The position is equal.} exd5 {[%emt 0:00:29]} 13. Bxh7+ {[%emt 0:00:09]} Kxh7 {[%emt 0:00:43]} 14. Qc2+ {[%emt 0:00:24]} Kg8 {[%emt 0:05:36]} 15. Qxc6 {[%emt 0:00:14]} Bg4 $132 {[%emt 0:01:10][%mdl 2048] Black has counterplay. A strong pair of Bishops.} 16. Ne5 {[%emt 0:02:41]} Bxe5 {[%emt 0:01:32]} 17. dxe5 {[%emt 0:00:09]} Rc8 {[%emt 0:02:34]} 18. Qa4 {[%emt 0:01:36]} d4 $1 {[%emt 0:00:46]} 19. Be3 {[%emt 0:19:04]} Be2 {[%emt 0:01:55]} 20. Qxd4 {[%emt 0:03:33]} Bxf1 $17 {[%emt 0:01:32]} 21. Rxf1 {[%emt 0:00:06]} Qxd4 {[%emt 0:02:24]} 22. Bxd4 $11 {[%emt 0:01:42][%mdl 4096] Endgame KRR-KRB} Rc2 {[%emt 0:04:56]} 23. Bc3 {[%emt 0:03:22]} Rd8 {[%emt 0:00:43]} 24. Re1 {[%emt 0:01:53][%cal Bf1e1,Be1e3,Be3f3,Bf3f4,Bf4a4][%mdl 32]} Kf8 {[%emt 0:02:38]} 25. g4 {[%emt 0:06:58]} Ke7 {[%emt 0:04:52][%mdl 1024] Black has compensation.} 26. Re3 {[%emt 0:02:59]} g6 {[%emt 0:26:52]} 27. Kg2 {[%emt 0:00:47]} Rd1 {[%emt 0:00:15]} 28. Rf3 {[%emt 0:05:30]} Re2 {[%emt 0:09:11]} 29. Rf4 {[%emt 0:02:47]} Rc1 {[%emt 0:03:34]} 30. h4 {[%emt 0:03:33]} Kf8 {[%emt 0:01:50]} 31. a3 {[%emt 0:08:07]} Rxc3 {[%emt 0:05:04]} 32. bxc3 $16 {[%emt 0:00:03]} Rxe5 $11 {[%emt 0:00:04] KR-KR} 33. Ra4 {[%emt 0:00:50]} a5 {[%emt 0:00:04]} 34. Rc4 {[%emt 0:00:38]} Rb5 {[%emt 0:00:10]} 35. Kf3 {[%emt 0:02:04]} Rb2 {[%emt 0:01:28]} 36. a4 {[%emt 0:00:49]} Ra2 {[%emt 0:01:01]} 37. Ke3 {[%emt 0:01:28]} Kg7 {[%emt 0:01:05]} 38. f3 {[%emt 0:04:25]} Rh2 {[%emt 0:02:56]} 39. Rc6 {[%emt 0:00:49]} Rxh4 $2 {[%emt 0:01:22][%mdl 8192]} (39... Ra2 $16) 40. Rxb6 $18 {[%emt 0:00:07]} Rh1 $2 {[%emt 0:00:04]} (40... f5 {was necessary.} 41. Kf4 fxg4) 41. Rb5 {[%emt 0:07:20]} Rc1 {[%emt 0:00:23]} 42. Kd2 {[%emt 0:00:07]} Rf1 {[%emt 0:00:04]} 43. Ke2 {[%emt 0:00:04]} Rc1 {[%emt 0:00:07]} 44. Rc5 {[%emt 0:00:07]} Kf6 {[%emt 0:02:02]} 45. f4 {[%emt 0:04:02]} ({Not} 45. Rxa5 Rxc3 46. Kf2 Ke6 $16) (45. Kd3 $18) 45... Ke6 $16 {[%emt 0:02:59]} 46. Kd2 {[%emt 0:09:40]} Rg1 {[%emt 0:11:24][%mdl 8192]} (46... Rf1 $16) 47. g5 $18 {[%emt 0:00:26]} Rf1 {[%emt 0:00:19]} 48. Ke3 {[%emt 0:00:13]} Re1+ {[%emt 0:01:58]} 49. Kd4 {[%emt 0:00:48] [#] White threatens Re5+ and mate.} Rf1 {[%emt 0:01:49]} 50. Rc6+ {[%emt 0:00:27]} Ke7 {[%emt 0:00:55]} 51. Ke5 {[%emt 0:00:15]} Re1+ {[%emt 0:02:01] [#]} 52. Kd5 $1 {[%emt 0:00:09]} Ra1 {[%emt 0:00:31]} 53. Rc7+ {[%emt 0:01:03]} Kf8 {[%emt 0:00:15]} 54. Rc4 {[%emt 0:00:40]} Ke7 {[%emt 0:00:25]} 55. Kc6 {[%emt 0:01:16]} Rb1 {[%emt 0:00:06]} 56. Re4+ {[%emt 0:01:54]} Kd8 {[%emt 0:00:39]} 57. Re5 {[%emt 0:00:24] Threatens to win with Rd5+.} Rb3 {[%emt 0:00:11]} 58. Rxa5 {[%emt 0:02:23]} Rxc3+ {[%emt 0:00:07]} 59. Kb7 {[%emt 0:02:55]} Kd7 {[%emt 0:05:13]} 60. Rd5+ {[%emt 0:00:43]} Ke6 {[%emt 0:00:05]} 61. Rb5 {[%emt 0:03:11]} Kd7 {[%emt 0:05:04]} 62. a5 {[%emt 0:00:05][%cal Ba4a5,Ba5a6,Ba6a7][%mdl 32] Intending a6 and mate.} Rc7+ {[%emt 0:00:05]} 63. Ka8 {[%emt 0:00:41]} (63. Kb8 $142 Rc8+ 64. Ka7) 63... Kc6 {[%emt 0:00:51]} 64. Rb6+ {[%emt 0:00:35]} Kc5 {[%emt 0:00:13]} 65. Rb7 {[%emt 0:01:46]} Rc8+ {[%emt 0:00:19]} 66. Ka7 {[%emt 0:00:06]} Rf8 {[%emt 0:00:16]} 67. a6 {[%emt 0:00:06] White mates.} f6 {[%emt 0:00:09]} 68. Rc7+ {[%emt 0:00:37]} Kd6 {[%emt 0:00:40]} 69. Kb7 {[%emt 0:00:18]} fxg5 {[%emt 0:00:05]} 70. fxg5 {[%emt 0:00:11]} Rf5 {[%emt 0:00:46]} 71. Rc6+ {[%emt 0:00:14]} Kd7 {[%emt 0:00:10]} 72. a7 {[%emt 0:00:38] Weighted Error Value: White=0.14 (very precise) /Black=0.56} 1-0